Cogmind - Beta 16 @@@ ROGUE MODE // 2025.12.15 @ 00:43:23 Player: Cracklepappy Result: Destroyed by Y-45 Defender with Beam Rifle Performance ------------- Evolutions (2) 1000 Regions Visited (6) 1200 Robots Destroyed (101) 505 Value Destroyed (2861) 2861 Prototype IDs (7) 140 Alien Tech Used (0) 0 Bonus (709) 709 TOTAL SCORE: 6415 Bonus ------- High Alert Combat Kills 435 Follower Combat Kills 74 Entered Garrisons 200 Cogmind --------- Core Integrity 0/550 Matter 280/300 Energy 158/160 System Corruption 0% Temperature Cool (15) Movement Flying (32) Location -8/Materials Parts ------- > --- POWER (1) -------- Light Nuclear Core > --- PROPULSION (3) --- Flight Unit Improved Flight Unit Cesium-ion Thruster > --- UTILITY (5) ------ Improved Heat Sink Advanced Weight Redist. System Machine Analyzer Melee Analysis Suite Core Analyzer > --- WEAPON (2) ------- Spear Spear > --- INVENTORY (5) ---- Light Nuclear Core Light Nuclear Core Flight Unit Actuator Array Spear Peak State ------------ > --- POWER ------------ Light Nuclear Core > --- PROPULSION ------- Improved Flight Unit Cesium-ion Thruster Cesium-ion Thruster > --- UTILITY ---------- Weight Redist. System Melee Analysis Suite Core Analyzer Core Analyzer Hardened Medium Armor Plating > --- WEAPON ----------- Spear Spear > --- INVENTORY -------- Flight Unit Flight Unit Cesium-ion Thruster Actuator Array Spear [Rating: 37] Favorites ----------- Power Light Nuclear Core Engine Light Ion Engine Power Core Light Nuclear Core Propulsion Light Treads Treads Light Treads Flight Unit Cesium-ion Thruster Utility Core Analyzer Device Weight Redist. System Processor Core Analyzer Protection Hardened Medium Armor Plating Weapon Spear Impact Weapon Flail Slashing Weapon Axe Piercing Weapon Spear Build | -11 -10 -10 -9 -8 -8 -8 ------- Run | Yrd Mat Min Mat Mat Gar Mat Slots Evolved 4 | . . . 2 2 . . Power . | . . . . . . . Propulsion 1 | . . . . 1 . . Utility 3 | . . . 2 1 . . Weapon . | . . . . . . . Parts Attached 62 | 3 6 1 14 24 10 4 Power 11 | 1 1 . 1 4 4 . Engine 6 | 1 1 . 1 3 . . Core 5 | . . . . 1 4 . Reactor . | . . . . . . . Propulsion 26 | 2 4 1 9 6 3 1 Treads 12 | 2 4 1 5 . . . Leg . | . . . . . . . Wheel . | . . . . . . . Hover . | . . . . . . . Flight 14 | . . . 4 6 3 1 Utility 19 | . 1 . 3 9 3 3 Device 7 | . . . 1 2 2 2 Storage . | . . . . . . . Processor 6 | . . . . 5 . 1 Hackware . | . . . . . . . Protection 6 | . 1 . 2 2 1 . Artifact . | . . . . . . . Weapon 6 | . . . 1 5 . . Energy Gun . | . . . . . . . Energy Cannon . | . . . . . . . Ballistic Gun . | . . . . . . . Ballistic Cannon . | . . . . . . . Launcher . | . . . . . . . Special Weapon . | . . . . . . . Impact Weapon 3 | . . . 1 2 . . Slashing Weapon 1 | . . . . 1 . . Piercing Weapon 2 | . . . . 2 . . Special Melee Weapon . | . . . . . . . Unidentified Prototypes 1 | . . . . 1 . . Corrupted Parts 1 | . . . 1 . . . System Corruption 6 | . . . 6 . . . Parts Lost 26 | . 5 . 9 6 6 . Power 5 | . 2 . 1 2 . . Propulsion 15 | . 3 . 5 3 4 . Utility 5 | . . . 2 1 2 . Weapon 1 | . . . 1 . . . Highest Loss Streak 8 | . 2 . 8 3 2 . To Critical Strikes . | . . . . . . . Average Backups 4 | . 3 4 4 4 4 5 Power . | . . . . . . 2 Propulsion 2 | . 2 4 3 2 . 1 Utility 1 | . 1 . . 1 1 1 Weapon . | . . . . . 1 1 Tool/Special . | . . . . . . . Unused Backups 8 | . . 2 1 . 2 3 Power . | . . . . . . . Propulsion 3 | . . . . . 2 1 Utility 3 | . . 2 . . . 1 Weapon 1 | . . . . . . 1 Tool/Special 1 | . . . 1 . . . Average Slot Usage (%) 67 | . 36 42 44 89 96 100 Engine 2 | . 3 . . 5 . . Core 2 | . . . . 2 9 9 Treads 12 | . 27 28 16 1 . . Flight 13 | . . . 5 24 23 27 Device 6 | . . . 2 6 18 21 Processor 11 | . . . . 24 18 23 Protection 8 | . 4 14 13 8 8 . Impact Weapon 2 | . . . 6 4 . . Piercing Weapon 7 | . . . . 10 18 18 Peak Build Rating 37 | 3 3 3 10 37 36 35 Average Rating 17 | 2 2 3 4 30 32 32 On Entrance 11 | . 3 3 3 5 36 32 Avg Prop Armor Cover (%) 38 | 36 38 38 39 41 . . Naked Turns . | . . . . . . . Heaviest Build 22 | 3 3 1 8 22 22 11 Greatest Support 43 | 40 40 40 40 43 23 25 Greatest Overweight (x) 1 | . . . 1 1 1 . Average Overweight (x) . | . . . . . . . Largest Inventory Capacity 5 | 5 5 5 5 5 5 5 Average Capacity 5 | 5 5 5 5 5 5 5 Most Carried 5 | . 5 5 5 5 5 5 Average Carried 4 | . 3 4 4 4 4 5 Final Capacity 5 | 5 5 5 5 5 5 5 Final Carried 5 | . 5 5 4 5 5 5 Class Distribution -------------------- 50% | Mutant 36% | Sprinter 9% | Scavenger-Gladiator 3% | Gladiator Dominant Class ---------------- Mutant | -10/Materials Mutant | -10/Mines Mutant | -9/Materials Sprinter | -8/Materials Scavenger-Gladiator | -8/Garrison Gladiator | -8/Materials Resources | -11 -10 -10 -9 -8 -8 -8 ----------- Run | Yrd Mat Min Mat Mat Gar Mat Matter Collected 898 | 230 50 10 170 318 100 20 Remotely . | . . . . . . . Salvage Created 3227 | . 26 59 415 1880 750 97 Parts 154 | . 9 4 13 90 36 2 Haulers Intercepted 10 | . 2 . 3 5 . . Recyclers Shooed 1 | . . . . 1 . . Parts Field Recycled . | . . . . . . . Retrieved Matter . | . . . . . . . Parts Self-Destructed . | . . . . . . . Prevented . | . . . . . . . Parts Restored . | . . . . . . . Kills | -11 -10 -10 -9 -8 -8 -8 ------- Run | Yrd Mat Min Mat Mat Gar Mat Combat Hostiles Destroyed 69 | . 9 3 10 26 20 1 Melee 59 | . 9 3 6 20 20 1 Classes Destroyed 11 | . 5 1 2 3 . . Worker 7 | . 2 . . 4 . 1 Builder 5 | . . . . 5 . . Tunneler 1 | . . . . 1 . . Hauler 10 | . 2 . 3 5 . . Recycler 5 | . . 1 . 4 . . Operator 2 | . . . . 2 . . Watcher 2 | . 1 . . 1 . . Swarmer 29 | . 6 3 5 7 8 . Grunt 27 | . 3 . 2 10 11 1 Duelist 2 | . . . 1 1 . . Sentry 11 | . . . 2 8 1 . Best Kill Streak 5 | . 3 2 3 5 3 1 Combat Bots Only 4 | . 2 2 2 4 3 1 Max Kills in Single Turn 2 | . 1 1 1 1 2 1 Gunslinging . | . . . . . . . Exploded . | . . . . . . . Melee 2 | . 1 1 1 1 2 1 Uniques/NPCs Destroyed . | . . . . . . . Combat | -11 -10 -10 -9 -8 -8 -8 -------- Run | Yrd Mat Min Mat Mat Gar Mat Hostile Shots Fired 599 | . 141 20 168 141 124 5 Missed 216 | . 40 8 64 55 46 3 Hits 383 | . 101 12 104 86 78 2 Melee 8 | . . . 5 3 . . Projectile 375 | . 101 12 99 83 78 2 Critical Strikes 6 | . . 1 2 3 . . Damage Taken 4045 | . 890 90 1174 1069 788 34 Core 1014 | . 156 28 270 279 266 15 Absorbed by Shields 177 | . . . . 52 125 . Redirected to Shielding 71 | . . 4 59 8 . . Regen/Repaired (Parts) 154 | . 132 . . 22 . . Core Remaining (%) 52 | 100 . 26 32 . . . Volleys Fired . | . . . . . . . Largest . | . . . . . . . Hottest . | . . . . . . . Shots Fired . | . . . . . . . Gun . | . . . . . . . Cannon . | . . . . . . . Launcher . | . . . . . . . Special . | . . . . . . . Kinetic . | . . . . . . . Thermal . | . . . . . . . Explosive . | . . . . . . . Electromagnetic . | . . . . . . . Robot Hit Streak . | . . . . . . . Robot Miss Streak . | . . . . . . . Penetration Max . | . . . . . . . Secondary Targets . | . . . . . . . Shots Hit Robots 160 | . . . 29 89 39 3 Core Hits 78 | . 10 2 6 36 21 3 Critical Kills 1 | . . . . 1 . . Critical Parts Destroyed 10 | . . . 5 5 . . Critical Strikes 23 | . . . 5 11 7 . Smash 12 | . . . 5 7 . . Impale 11 | . . . . 4 7 . Melee Attacks 273 | . . . 43 135 87 8 Impact 86 | . . . 43 43 . . Slashing 6 | . . . . 6 . . Piercing 181 | . . . . 86 87 8 Sneak Attacks 27 | . . . 3 22 1 1 Combat Hostiles 4 | . . . . 3 1 . Follow-up Attacks 27 | . . . . 14 13 . Damage Inflicted 6205 | 3 79 10 819 3901 1262 131 Guns . | . . . . . . . Cannons . | . . . . . . . Explosions . | . . . . . . . Melee 6100 | . . . 818 3889 1262 131 Ramming 105 | 3 79 10 1 12 . . Kinetic . | . . . . . . . Thermal . | . . . . . . . Explosive . | . . . . . . . Electromagnetic . | . . . . . . . Impact 2059 | . . . 818 1241 . . Slashing 264 | . . . . 264 . . Piercing 3777 | . . . . 2384 1262 131 Highest Corruption 7 | . . . 7 . . . Average Corruption 4 | . . . 4 . . . Corruption Purged . | . . . . . . . Corruption Blocked . | . . . . . . . Effects 1 | . . . 1 . . . Energy Discharges 1 | . . . 1 . . . Overload Shots . | . . . . . . . Overflow Damage 1097 | . . . 289 710 98 . Projectiles . | . . . . . . . Explosions . | . . . . . . . Melee 1097 | . . . 289 710 98 . Knockbacks 5 | . . . 1 4 . . Impact 5 | . . . 1 4 . . Kinetic . | . . . . . . . Secondary . | . . . . . . . Self-Inflicted Damage . | . . . . . . . Shots . | . . . . . . . Rammed 161 | 4 118 18 2 19 . . Targets Rammed 182 | 4 132 22 2 22 . . Kicked . | . . . . . . . Crushed 21 | . 14 4 . 3 . . Highest Temperature 10 | . . . . 10 . . Average Temperature 4 | . . . . 4 . . Received Heat Transfer 1036 | . 171 . 249 315 283 18 Siege Activations . | . . . . . . . Martial Activations . | . . . . . . . Shielding Activations . | . . . . . . . Robots Disrupted . | . . . . . . . Combat Hostiles . | . . . . . . . Robots Corrupted 15 | . . . 7 8 . . Combat Hostiles 10 | . . . 4 6 . . Parts Fried 22 | . . . 9 13 . . Impact Corruptions 33 | . . . 16 17 . . Robots Melted . | . . . . . . . Combat Hostiles . | . . . . . . . Parts Melted . | . . . . . . . Heat Transferred . | . . . . . . . Parts Sabotaged . | . . . . . . . Parts Stolen . | . . . . . . . Parts Stripped . | . . . . . . . Power Chain Reactions . | . . . . . . . Alert | -11 -10 -10 -9 -8 -8 -8 ------- Run | Yrd Mat Min Mat Mat Gar Mat Maximum Alert Level 3 | . . . 1 2 3 2 Low Security (%) 49 | 100 100 100 71 14 . . Level 1 9 | . . . 28 16 . . Level 2 31 | . . . . 69 43 100 Level 3 10 | . . . . . 56 . Level 4 . | . . . . . . . Level 5 . | . . . . . . . High Security . | . . . . . . . Max Security . | . . . . . . . Peak Influence 1095 | . 50 60 283 653 1095 568 Initial 533 | . . . 1 114 417 533 Average 308 | . 16 17 133 433 764 541 Influence Increases 2968 | . 361 105 625 1084 738 55 Destroy 0b10 Robot/C 1460 | . 180 60 280 520 400 20 Destroy 0b10 Robot/NC 160 | . 25 5 15 110 . 5 Destroy Leader 294 | . 36 10 76 152 10 10 Allied During Kill 9 | . . . 9 . . . Successful Hack 134 | . 30 . 19 53 14 18 Disable Machine 15 | . . . . . 15 . Anti-Garrison Action 200 | . . . . . 200 . Destroy Structure 36 | . . . 1 9 24 2 Partial Spotted 135 | . . . 30 75 30 . Lose Combat Pursuer 525 | . 90 30 195 165 45 . Influence Decreases 2410 | . 361 100 359 713 285 592 Entered New Map 948 | . . . 4 157 225 562 Time Decay 1177 | . 316 100 245 486 . 30 Lost Part 255 | . 45 . 90 60 60 . Lost Ally 30 | . . . 20 10 . . Squads Dispatched 8 | . 2 . 2 4 . . Investigation 3 | . 1 . . 2 . . Extermination . | . . . . . . . Reinforcement 5 | . 1 . 2 2 . . Assault . | . . . . . . . Garrison . | . . . . . . . Intercept . | . . . . . . . Searches Triggered . | . . . . . . . Construction Impeded . | . . . . . . . Haulers Reinforced . | . . . . . . . Active Scanning Responses . | . . . . . . . Cargo Convoy Interrupts . | . . . . . . . Stealth | -11 -10 -10 -9 -8 -8 -8 --------- Run | Yrd Mat Min Mat Mat Gar Mat Distress Signals 10 | . 1 . 4 5 . . Communications Jammed . | . . . . . . . Distress Signals . | . . . . . . . Times Spotted 147 | . 25 4 40 47 28 3 Peak Tracking Total 12 | . 5 2 12 8 4 3 Tactical Retreats 19 | . 3 1 8 6 1 . Traps | -11 -10 -10 -9 -8 -8 -8 ------- Run | Yrd Mat Min Mat Mat Gar Mat Traps Triggered 8 | . 1 . 1 . 6 . Indirectly . | . . . . . . . Trap Hack Attempts . | . . . . . . . Triggered . | . . . . . . . Disarmed . | . . . . . . . Reprogrammed . | . . . . . . . Reused . | . . . . . . . Traps Extracted . | . . . . . . . Installed . | . . . . . . . Triggered . | . . . . . . . Machines | -11 -10 -10 -9 -8 -8 -8 ---------- Run | Yrd Mat Min Mat Mat Gar Mat Machines Disabled 4 | . . . . . 4 . Max in Single Turn 1 | . . . . . 1 . Garrison Relay 3 | . . . . . 3 . Machines Repaired . | . . . . . . . Machines Dismantled . | . . . . . . . Machines Sabotaged . | . . . . . . . Overloaded Fab Kills . | . . . . . . . Hacking | -11 -10 -10 -9 -8 -8 -8 --------- Run | Yrd Mat Min Mat Mat Gar Mat Machines Accessed 34 | . 9 . 5 16 1 3 Terminals 22 | . 6 . 3 10 1 2 Fabricators . | . . . . . . . Repair Stations 3 | . 1 . . 2 . . Recycling Units 4 | . 2 . 1 1 . . Scanalyzers 4 | . . . 1 2 . 1 Garrison Access 1 | . . . . 1 . . Total Hacks 98 | . 25 . 13 50 2 8 Successful 47 | . 11 . 6 25 1 4 Failed 51 | . 14 . 7 25 1 4 Catastrophic 7 | . 4 . . 1 1 1 Database Lockouts . | . . . . . . . Manual 39 | . 14 . 3 22 . . Terminals 70 | . 20 . 9 35 2 4 Fabricators . | . . . . . . . Repair Stations 8 | . 2 . . 6 . . Recycling Units 9 | . 3 . 3 3 . . Scanalyzers 8 | . . . 1 3 . 4 Garrison Access 3 | . . . . 3 . . Terminal Hacks 14 | . 1 . 3 8 1 1 Robot Analysis 1 | . . . 1 . . . Prototype ID Bank 3 | . . . 1 2 . . Branch Access Points 2 | . . . . 1 . 1 Recycling Unit Index 1 | . . . . 1 . . Locate Traps 3 | . . . 1 2 . . Hauler Manifests 2 | . 1 . . 1 . . Registered Components 1 | . . . . 1 . . Garrison Registry 1 | . . . . . 1 . Fabricator Hacks . | . . . . . . . Repair Station Hacks 5 | . 2 . . 3 . . Scan Component 3 | . 1 . . 2 . . Repair 2 | . 1 . . 1 . . Recycling Unit Hacks 3 | . 2 . 1 . . . Retrieve Components 3 | . 2 . 1 . . . Scanalyzer 6 | . . . . 3 . 3 Insert Component 1 | . . . . . . 1 Analyze 1 | . . . . . . 1 Retrieve Study 4 | . . . . 3 . 1 Garrison Access Hacks 1 | . . . . 1 . . Unlock Access 1 | . . . . 1 . . Unauthorized Hacks 18 | . 6 . 2 10 . . Terminals 16 | . 6 . 1 9 . . Track 3 | . 2 . . 1 . . Assimilate 2 | . . . . 2 . . Botnet 2 | . . . . 2 . . Skim 9 | . 4 . 1 4 . . Fabricators . | . . . . . . . Repair Stations . | . . . . . . . Recycling Units 1 | . . . 1 . . . Reject 1 | . . . 1 . . . Scanalyzers . | . . . . . . . Garrison Access 1 | . . . . 1 . . Reprogram 1 | . . . . 1 . . Data Cores Recovered 2 | . . . . 2 . . Used . | . . . . . . . Hacking Detections 31 | . 7 . 4 16 1 3 Full Trace Events 4 | . . . . 3 1 . Feedback Events . | . . . . . . . Feedback Blocked . | . . . . . . . Robot Schematics Acquired . | . . . . . . . Robots Built . | . . . . . . . Authchips . | . . . . . . . Time . | . . . . . . . Total Robot Build Rating . | . . . . . . . Part Schematics Acquired . | . . . . . . . Parts Built . | . . . . . . . Authchips . | . . . . . . . Time . | . . . . . . . Total Part Build Rating . | . . . . . . . Part Studies Acquired 4 | . . . . 3 . 1 Parts Repaired 2 | . 1 . . 1 . . Time 45 | . 26 . . 19 . . Parts Recycled . | . . . . . . . Recycled Matter . | . . . . . . . Retrieved Matter . | . . . . . . . Retrieved Components 16 | . 7 . 9 . . . Parts Scanalyzed 1 | . . . . . . 1 Part Schematics Acquired . | . . . . . . . Parts Damaged . | . . . . . . . Bothacking | -11 -10 -10 -9 -8 -8 -8 ------------ Run | Yrd Mat Min Mat Mat Gar Mat Used RIF Installer . | . . . . . . . Robots Hacked . | . . . . . . . Non-combat . | . . . . . . . Combat . | . . . . . . . Robot Hacks Applied . | . . . . . . . Relay Couplers Released 12 | . . . . . 12 . Machine Destruction 12 | . . . . . 12 . Fabnet Peak Effective % . | . . . . . . . Robots Rewired . | . . . . . . . Allies Hacked . | . . . . . . . Hacks Repelled . | . . . . . . . Allies | -11 -10 -10 -9 -8 -8 -8 -------- Run | Yrd Mat Min Mat Mat Gar Mat Total Allies 2 | . . 1 . 1 . . Largest Group 1 | . . 1 1 1 . . Highest-Rated Group 31 | . . 31 31 10 . . Highest-Rated Ally 31 | . . 31 31 10 . . Initial Warlord ECA Mod 3 | . . . . . . 3 Total Orders . | . . . . . . . Ally Attacks 11 | . . . 11 . . . Total Damage 145 | . . . 145 . . . Kills 4 | . . . 4 . . . Allies Corrupted . | . . . . . . . Allies Melted . | . . . . . . . Intel | -11 -10 -10 -9 -8 -8 -8 ------- Run | Yrd Mat Min Mat Mat Gar Mat Active Infowar (turns) 703 | . . . . 653 . 50 Machine Analysis 703 | . . . . 653 . 50 Robot Analysis Total 1 | . . . 1 . . . Derelict Logs Recovered 2 | . . 2 . . . . Drone Launches . | . . . . . . . Drone Recoveries . | . . . . . . . Exploration | -11 -10 -10 -9 -8 -8 -8 ------------- Run | Yrd Mat Min Mat Mat Gar Mat Turns Passed 4013 | 81 1001 324 546 1260 728 73 Spaces Moved 5448 | 76 962 408 613 2492 743 154 Core 1483 | 46 746 336 310 45 . . Treads 405 | 30 216 72 75 12 . . Legs . | . . . . . . . Wheels . | . . . . . . . Hover . | . . . . . . . Flight 3560 | . . . 228 2435 743 154 Fastest Speed 29 | 50 50 50 37 29 30 32 Average Speed 47 | 93 74 69 58 30 47 33 Slowest Speed 160 | 160 160 160 160 160 112 34 Overloaded Moves . | . . . . . . . Propulsion Burnouts . | . . . . . . . Robots Hopped 29 | . . . 10 17 1 1 Potential Cave-ins . | . . . . . . . Cave-ins Triggered . | . . . . . . . Exploration Rate (%) 58 | 4 97 87 53 92 61 17 Regions Visited 6 Branch Regions 1 Pre-discovered Areas 1 | . . 1 . . . . Known Exits Taken 1 | . . . . 1 . . Unknown Exits Taken 4 | 1 1 1 1 . . . Scrap Searched 1 | . . 1 . . . . Spaces Dug 15 | . . . . 9 4 2 Terrain Destroyed 15 | . . . . 9 4 2 Melee 15 | . . . . 9 4 2 Projectile . | . . . . . . . AOE . | . . . . . . . Terrain Rammed . | . . . . . . . Walls Destroyed . | . . . . . . . Machines Disabled . | . . . . . . . Actions | -11 -10 -10 -9 -8 -8 -8 --------- Run | Yrd Mat Min Mat Mat Gar Mat Total 6335 | 82 1165 437 713 2766 1006 166 Wait 288 | . 56 . 25 111 96 . Move 5388 | 75 961 407 592 2461 740 152 Hop 25 | . . . 10 13 1 1 Pick Up 34 | . 9 3 9 10 3 . Fast Attach 24 | 3 2 . 6 9 4 . Attach 24 | . 3 . 10 8 3 . Detach 4 | . . . 3 1 . . Swap 32 | . 1 1 5 17 4 4 Drop 26 | . 1 4 8 5 5 3 Fire . | . . . . . . . Melee 226 | . . . 43 109 68 6 Ram . | . . . . . . . Kick . | . . . . . . . Crush 182 | 4 132 22 2 22 . . Escape Stasis 82 | . . . . . 82 . Rewire . | . . . . . . . Trap . | . . . . . . . Miscellaneous . | . . . . . . . Route ------- -11/Scrapyard -10/Materials (discovered 5 exits: *Mat x3 / [*Min x2]) -10/Mines (discovered 2 exits: *Mat x2) -9/Materials (discovered 5 exits: *Mat x2 / *Min x2 / Sto) -8/Materials (discovered 4 exits: [*Fac x3] / Gar) -8/Garrison (discovered 3 exits: *Mat x3) -8/Materials History --------- Turn | Location | Event 9 | -11/Scrapyard | Discovered new exit (range 15) 82 | -11/Scrapyard | Entered Materials 161 | -10/Materials | Discovered new exit (range 5) 294 | -10/Materials | Discovered new exit (range 10) 304 | -10/Materials | Build established: Mutant 503 | -10/Materials | Discovered new exit (range 16) 552 | -10/Materials | Discovered new exit (range 15) 625 | -10/Materials | Core integrity fell below 50% 675 | -10/Materials | Discovered new exit (range 14) 1002 | -10/Materials | Repaired Lgt. Treads 1083 | -10/Materials | Entered Mines 1225 | -10/Mines | Learned 2 Materials zone layouts 1257 | -10/Mines | Found a hidden stash of uninstalled traps 1374 | -10/Mines | Learned location of Mines (-9) 1376 | -10/Mines | Discovered new exit (range 7) 1393 | -10/Mines | Discovered new exit (range 11) 1399 | -10/Mines | Received a Mining Laser from a helpful Derelict 1407 | -10/Mines | Entered Materials 1407 | -9/Materials | Accompanied by 1 ally 1407 | -9/Materials | Evolved 2 slots: Utility x2 1407 | -9/Materials | Discovered new exit (range 15) 1408 | -9/Materials | Identified exit to Mines 1408 | -9/Materials | Identified exit to Storage 1881 | -9/Materials | Discovered new exit (range 4) 1900 | -9/Materials | Core integrity fell below 50% 1943 | -9/Materials | Discovered new exit (range 4) 1945 | -9/Materials | Lost 8 parts (1p4n2u1w) 1953 | -9/Materials | Entered another Materials area 1953 | -8/Materials | Evolved 2 slots: Propulsion x1, Utility x1 2084 | -8/Materials | Lost 3 parts (1p2n) 2089 | -8/Materials | Discovered new exit (range 11) 2231 | -8/Materials | Discovered new exit (range 3) 2261 | -8/Materials | Repaired Cesium-ion Thruster 2371 | -8/Materials | Discovered new exit (range 16) 2576 | -8/Materials | Build established: Sprinter 2746 | -8/Materials | Identified exit to Garrison 3062 | -8/Materials | Core integrity fell below 50% 3213 | -8/Materials | Entered Garrison 3238 | -8/Garrison | Garrison Relay disabled 3245 | -8/Garrison | Triggered checkpoint 3274 | -8/Garrison | Garrison Relay disabled 3323 | -8/Garrison | Triggered checkpoint 3498 | -8/Garrison | Triggered checkpoint 3652 | -8/Garrison | Triggered checkpoint 3705 | -8/Garrison | Garrison Relay disabled 3744 | -8/Garrison | Discovered new exit (range 15) 3799 | -8/Garrison | Discovered new exit (range 61) 3799 | -8/Garrison | Discovered new exit (range 54) 3799 | -8/Garrison | Discovered new exit (range 16) 3841 | -8/Garrison | Build established: Scavenger-Gladiator 3864 | -8/Garrison | Core integrity fell below 20% 3941 | -8/Garrison | Entered Materials 4014 | -8/Materials | Destroyed by Y-45 Defender with Beam Rifle Last Messages --------------- Scanning Spear... Ready to analyze. >>Scanalyze Scanning: Spear... Scan incomplete, additional scanning required. 03953_ Connecting with Terminal... 03955_ Dropped Imp. Heat Sink. 03964_ Acquired Machine Analyzer. 03972_ Sneak attack on K-01 Serf. 03972_ K-01 Serf destroyed. 03973_ Extracted 7 matter. 03975_ Acquired 13 matter. 03975_ Connecting with Terminal... >>Access(Branch) No branch access points found. 03977_ Dropped Weight Redist. System. 03995_ G-50 Soldier destroyed. 03998_ Dropped Flight Unit+. 04014_ >> Machine Analyzer network decryption results: 04014_ Terminal x2 Map ----- +----------------------------------------------------+ | | | | | | | | | | | | | | | | | | | | | | | | | | | | | | | ??????????????????????????????? | | ??????????????????????????????? | | ??????????????????????########? | | ??????????????????????# ] ! #? | | ??????????????????????#/ #? | | ####################### #? | | + !!! #? | | ####################### !!! #? | | ??????????????????????# !! #? | | ??????????????????????###/####? | | ????????????????????????#@#???? | | ????????????????????????#/#???? | | ????????????????????"""? ???? | | ????????????????????"T"? ???? | | ????????????????????"?" ! ??? | | ??????????????????????? ??? | | ?????????????????????? #?? | | ?????????????????????? """ #?? | | ????????????????????? """ #?? | | ????????????????????? """ #?? | | ????????????????????#Y#######?? | | ????????????????????##????????? | | ??????????????????????????????? | | ??????????????????????????????? | | ??????????????????????????????? | | ??????????????????????????????? | | ??????????????????????????????? | | ??????????????????????????????? | | ??????????????????????????????? | | ??????????????????????????????? | | ???????????????????????"""????? | | ??????????????????????"""""???? | | ??????????????????????"""""???? | | ??????????????????????"""""???? | | ???????????????????????"""????? | +----------------------------------------------------+ Best States ------------- Heat Dissipation 59 Energy Generation 15 Energy Capacity 160 Matter Stores 300 Matter Capacity 300 Sight Range 16 Terrain Scan Density 10 Additional Mass Support 9 Armor Coverage 450 Core Shielding 20 Power Shielding 33 Evasion (%) 64 Melee Accuracy 5 Core Analysis 9 Recoil Reduction 2 Item Schematics ----------------- None Robot Schematics ------------------ None Fabricated ------------ Nothing Repaired ---------- Lgt. Treads | 5% | -10/Materials Cesium-ion Thruster | 12% | -8/Materials Studied --------- Cesium-ion Thruster | -8/Materials | Hacked Flight Unit | -8/Materials | Hacked Lgt. Ion Engine | -8/Materials | Hacked Lgt. Nuclear Core | -8/Materials | Hacked Alien Tech Used ----------------- None Achievements -------------- None Challenges ------------ None Game ------ Seed TachyonHugeTube Manual? 0 Play Time 00:54:24 Cumulative 1440.1 hours Start 2025.12.14 @ 23:49:43 End 2025.12.15 @ 00:43:23 Sessions 1 Manual Loads 0 Difficulty Rogue Special Mode None Game No. 655 Rogue 655 Adventurer 0 Explorer 0 Win Type - Total 28 Types 13/5/3/0/1/1/2/2/0/1 Lore% 93 Gallery% 90 Achievement% 70 Wizard Run 0 Options --------- Layout 0 ASCII 0 Keyboard 0 Movement Numpad Keybinds 0 Fullscreen 2 Font 24/Smallcaps Map View 76x50 Zoom Use 0% Tactical HUD 1 Map Filters NONE Filters SHIFT_HUE(315) Steam 1 RUN: e540ae1e-4d93-4aac-980f-42448b0e70a5